fUST/lending_fUST_20250531
["ID","MTS","AMOUNT","RATE_DAILY","PERIOD"]
[363253334,1748650241966,-1968.93,0.00017534,2]
[363253336,1748650241977,-430.0,0.00017534,2]
[363253338,1748650241987,-430.0,0.00017534,2]
[363253340,1748650241996,-680.17,0.00017534,2]
[363253342,1748650242005,-430.0,0.00017534,2]
[363253344,1748650242015,-525.06,0.00017534,2]
[363253346,1748650242024,-484.7,0.00017534,2]
[363253348,1748650242033,-430.0,0.00017534,2]
[363253350,1748650242043,-430.0,0.00017534,2]
[363253352,1748650242064,-1561.28,0.00017534,2]
[363253353,1748650242076,-430.0,0.00017534,2]
[363253356,1748650242087,-1929.84,0.00017534,2]
[363253358,1748650242096,-948.55,0.00017534,2]
[363253360,1748650242106,-430.0,0.00017534,2]
[363253362,1748650242115,-1460.09,0.00017534,2]
[363253363,1748650242125,-430.0,0.00017534,2]
[363253365,1748650242135,-721.34,0.00017534,2]
[363253367,1748650242144,-1111.19,0.00017534,2]
[363253369,1748650242154,-430.0,0.00017534,2]
[363253371,1748650242163,-430.0,0.00017534,2]
[363253373,1748650242172,-2520.39,0.00017534,2]
[363253375,1748650242182,-430.0,0.00017534,2]
[363253377,1748650242193,-849.62,0.00017534,2]
[363253381,1748650242212,-430.0,0.00017534,2]
[363253383,1748650242224,-528.28,0.00017534,2]
[363253385,1748650242234,-760.4,0.00017534,2]
[363253387,1748650242244,-341.97391607,0.00017534,2]
[363253389,1748650242253,-500.0,0.00017684,2]
[363253391,1748650242263,-500.0,0.00017684,2]
[363253393,1748650242273,-6179.79939093,0.00017728,2]
[363253395,1748650242283,-500.0,0.00017768,2]
[363253397,1748650242292,-1000.0,0.00017768,2]
[363253399,1748650242302,-1000.0,0.00017768,2]
[363253401,1748650242316,-1000.0,0.00017779,2]
[363253403,1748650242326,-1000.0,0.00017784,2]
[363253405,1748650242335,-151.0,0.000178,2]
[363253407,1748650242345,-430.0,0.00017808,2]
[363253409,1748650242356,-877.74,0.00017808,2]
[363253411,1748650242367,-846.74,0.00017808,2]
[363253412,1748650242377,-430.0,0.00017808,2]
[363253413,1748650242387,-1593.58,0.00017808,2]
[363253414,1748650242398,-1003.75,0.00017808,2]
[363253415,1748650242409,-1278.08,0.00017808,2]
[363253417,1748650242418,-1043.15,0.00017808,2]
[363253419,1748650242427,-703.3,0.00017808,2]
[363253421,1748650242437,-1196.82,0.00017808,2]
[363253423,1748650242447,-430.0,0.00017808,2]
[363253425,1748650242458,-1968.93,0.00017808,2]
[363253427,1748650242467,-430.0,0.00017808,2]
[363253429,1748650242477,-430.0,0.00017808,2]
[363253431,1748650242487,-680.17,0.00017808,2]
[363253451,1748650242668,-430.0,0.00017808,2]
[363253453,1748650242678,-525.06,0.00017808,2]
[363253455,1748650242688,-484.7,0.00017808,2]
[363253457,1748650242697,-430.0,0.00017808,2]
[363253459,1748650242707,-430.0,0.00017808,2]
[363253461,1748650242716,-1561.28,0.00017808,2]
[363253462,1748650242726,-430.0,0.00017808,2]
[363253463,1748650242736,-1929.84,0.00017808,2]
[363253464,1748650242746,-948.55,0.00017808,2]
[363253465,1748650242756,-430.0,0.00017808,2]
[363253466,1748650242765,-1460.09,0.00017808,2]
[363253467,1748650242774,-155.71,0.00017808,2]
[363253468,1748650242784,-721.34,0.00017808,2]
[363253469,1748650242794,-1111.19,0.00017808,2]
[363253470,1748650242803,-430.0,0.00017808,2]
[363253471,1748650242816,-430.0,0.00017808,2]
[363253473,1748650242824,-2520.39,0.00017808,2]
[363253474,1748650242833,-430.0,0.00017808,2]
[363253476,1748650242843,-849.62,0.00017808,2]
[363253478,1748650242852,-430.0,0.00017808,2]
[363253479,1748650242862,-528.28,0.00017808,2]
[363253480,1748650242872,-760.4,0.00017808,2]
[363253481,1748650242882,-500.0,0.00017838,2]
[363253482,1748650242891,-500.0,0.0001788,2]
[363253483,1748650242905,-2000.0,0.00017884,2]
[363253484,1748650242914,-1000.0,0.00017884,2]
[363253485,1748650242924,-1079.47846106,0.00017893,2]
[363253486,1748650242933,-998.63634442,0.00017996,5]
[363253487,1748650242944,-27168.27,0.00018,2]
[363253488,1748650242954,-6179.79939093,0.00018003,2]
[363253489,1748650242963,-1000.0,0.00018033,2]
[363253491,1748650242975,-1000.0,0.00018033,7]
[363253492,1748650242984,-1000.0,0.00018033,7]
[363253493,1748650242993,-207.4,0.00018049,2]
[363253494,1748650243002,-151.0,0.00018049,2]
[363253495,1748650243012,-151.0,0.00018049,2]
[363253496,1748650243021,-194.08542105,0.00018049,2]
[363253497,1748650243031,-300.0,0.00018049,2]
[363253498,1748650243040,-300.0,0.00018049,2]
[363253499,1748650243049,-300.0,0.00018049,2]
[363253500,1748650243061,-300.0,0.00018049,2]
[363253501,1748650243074,-300.0,0.00018049,2]
[363253502,1748650243084,-300.0,0.00018049,2]
[363253503,1748650243093,-300.0,0.00018049,2]
[363253504,1748650243103,-5000.0,0.00018049,2]
[363253505,1748650243112,-300.0,0.00018049,2]
[363253506,1748650243122,-300.0,0.00018049,2]
[363253507,1748650243132,-300.0,0.00018049,2]
[363253508,1748650243141,-300.0,0.00018049,2]
[363253509,1748650243150,-300.0,0.00018049,2]
[363253510,1748650243160,-300.0,0.00018049,2]
[363253511,1748650243169,-300.0,0.00018049,2]
[363253512,1748650243179,-300.0,0.00018049,2]
[363253513,1748650243188,-200.59691172,0.00018049,2]
[363253514,1748650243199,-158.4280407,0.00018055,2]
[363253515,1748650243208,-2400.0,0.00018068,2]
[363253516,1748650243217,-430.0,0.00018082,2]
[363253517,1748650243227,-877.74,0.00018082,2]
[363253518,1748650243236,-846.74,0.00018082,2]
[363253519,1748650243245,-494.72901773,0.00018082,2]
[363253520,1748650243255,-1593.58,0.00018082,2]
[363253521,1748650243264,-1003.75,0.00018082,2]
[363253522,1748650243274,-1278.08,0.00018082,2]
[363253523,1748650243283,-1043.15,0.00018082,2]
[363253524,1748650243292,-703.3,0.00018082,2]
[363253525,1748650243302,-1196.82,0.00018082,2]
[363253526,1748650243315,-430.0,0.00018082,2]
[363253527,1748650243324,-1968.93,0.00018082,2]
[363253528,1748650243334,-404.7158829,0.00018082,2]
[363253529,1748650243343,-430.0,0.00018082,2]
[363253530,1748650243353,-680.17,0.00018082,2]
[363253531,1748650243363,-430.0,0.00018082,2]
[363253532,1748650243373,-525.06,0.00018082,2]
[363253533,1748650243382,-484.7,0.00018082,2]
[363253534,1748650243392,-430.0,0.00018082,2]
[363253535,1748650243401,-430.0,0.00018082,2]
[363253536,1748650243410,-1561.28,0.00018082,2]
[363253537,1748650243419,-430.0,0.00018082,2]
[363253538,1748650243428,-1929.84,0.00018082,2]
[363253539,1748650243438,-948.55,0.00018082,2]
[363253540,1748650243447,-430.0,0.00018082,2]
[363253541,1748650243456,-1460.09,0.00018082,2]
[363253542,1748650243465,-721.34,0.00018082,2]
[363253543,1748650243474,-1111.19,0.00018082,2]
[363253544,1748650243483,-430.0,0.00018082,2]
[363253545,1748650243494,-430.0,0.00018082,2]
[363253546,1748650243503,-2520.39,0.00018082,2]
[363253547,1748650243513,-430.0,0.00018082,2]
[363253548,1748650243522,-849.62,0.00018082,2]
[363253549,1748650243532,-430.0,0.00018082,2]
[363253550,1748650243541,-528.28,0.00018082,2]
[363253551,1748650243551,-760.4,0.00018082,2]
[363253552,1748650243562,-151.0,0.000181,2]
[363253553,1748650243571,-156.35479342,0.0001811,2]
[363253554,1748650243580,-6179.79939093,0.00018279,2]
[363253555,1748650243590,-151.0,0.000183,2]
[363253556,1748650243600,-1500.0,0.00018316,2]
[363253557,1748650243609,-1521.75294258,0.00018316,2]
[363253558,1748650243619,-1500.0,0.00018327,2]
[363253559,1748650243628,-1500.0,0.00018332,2]
[363253560,1748650243638,-430.0,0.00018356,2]
[363253561,1748650243647,-877.74,0.00018356,2]
[363253562,1748650243657,-846.74,0.00018356,2]
[363253563,1748650243667,-1593.58,0.00018356,2]
[363253564,1748650243676,-1003.75,0.00018356,2]
[363253565,1748650243686,-1278.08,0.00018356,2]
[363253566,1748650243693,-1043.15,0.00018356,2]
[363253567,1748650243703,-703.3,0.00018356,2]
[363253568,1748650243712,-1196.82,0.00018356,2]
[363253569,1748650243722,-430.0,0.00018356,2]
[363253570,1748650243732,-1968.93,0.00018356,2]
[363253571,1748650243741,-430.0,0.00018356,2]
[363253572,1748650243751,-680.17,0.00018356,2]
[363253573,1748650243760,-430.0,0.00018356,2]
[363253574,1748650243770,-525.06,0.00018356,2]
[363253575,1748650243779,-484.7,0.00018356,2]
[363253576,1748650243789,-430.0,0.00018356,2]
[363253577,1748650243799,-430.0,0.00018356,2]
[363253578,1748650243808,-1561.28,0.00018356,2]
[363253579,1748650243819,-430.0,0.00018356,2]
[363253580,1748650243829,-1929.84,0.00018356,2]
[363253581,1748650243839,-948.55,0.00018356,2]
[363253582,1748650243848,-430.0,0.00018356,2]
[363253583,1748650243858,-1460.09,0.00018356,2]
[363253584,1748650243868,-721.34,0.00018356,2]
[363253585,1748650243878,-430.0,0.00018356,2]
[363253586,1748650243888,-1111.19,0.00018356,2]
[363253587,1748650243900,-430.0,0.00018356,2]
[363253588,1748650243910,-2520.39,0.00018356,2]
[363253589,1748650243920,-430.0,0.00018356,2]
[363253590,1748650243931,-849.62,0.00018356,2]
[363253591,1748650243941,-430.0,0.00018356,2]
[363253592,1748650243950,-528.28,0.00018356,2]
[363253593,1748650243962,-760.4,0.00018356,2]
[363253594,1748650243972,-156.35479342,0.00018356,2]
[363253595,1748650243982,-156.35479342,0.00018356,2]
[363253596,1748650243992,-156.35479342,0.00018356,2]
[363253597,1748650244003,-1079.47846106,0.00018397,2]
[363253598,1748650244012,-3000.0,0.00018432,2]
[363253599,1748650244022,-691.26979472,0.00018432,2]
[363253600,1748650244032,-151.0,0.000185,2]
[363253601,1748650244041,-500.0,0.000185,2]
[363253602,1748650244051,-733.997,0.00018555,2]
[363253603,1748650244062,-172.918,0.00018555,2]
[363253604,1748650244072,-6179.79939093,0.00018555,2]
[363253605,1748650244082,-5000.0,0.00018597,2]
[363253606,1748650244091,-151.0,0.000186,2]
[363253607,1748650244101,-156.35479347,0.00018603,2]
[363253608,1748650244111,-170.69696392,0.00018603,2]
[363253609,1748650244121,-156.35479342,0.00018603,2]
[363253610,1748650244131,-156.35479342,0.00018603,2]
[363253611,1748650244140,-156.35479342,0.00018603,2]
[363253612,1748650244149,-2387.658062,0.0001862,2]
[363253613,1748650244159,-430.0,0.0001863,2]
[363253614,1748650244168,-846.74,0.0001863,2]
[363253615,1748650244178,-877.74,0.0001863,2]
[363253616,1748650244188,-1593.58,0.0001863,2]
[363253617,1748650244197,-1003.75,0.0001863,2]
[363253618,1748650244207,-1278.08,0.0001863,2]
[363253619,1748650244216,-1043.15,0.0001863,2]
[363253620,1748650244225,-703.3,0.0001863,2]
[363253621,1748650244235,-1196.82,0.0001863,2]
[363253622,1748650244244,-430.0,0.0001863,2]
[363253623,1748650244254,-1968.93,0.0001863,2]
[363253624,1748650244263,-430.0,0.0001863,2]
[363253625,1748650244273,-680.17,0.0001863,2]
[363253626,1748650244283,-430.0,0.0001863,2]
[363253627,1748650244292,-525.06,0.0001863,2]
[363253628,1748650244302,-484.7,0.0001863,2]
[363253629,1748650244312,-430.0,0.0001863,2]
[363253630,1748650244321,-430.0,0.0001863,2]
[363253631,1748650244331,-1561.28,0.0001863,2]
[363253632,1748650244340,-430.0,0.0001863,2]
[363253633,1748650244350,-1929.84,0.0001863,2]
[363253634,1748650244359,-948.55,0.0001863,2]
[363253635,1748650244369,-430.0,0.0001863,2]
[363253636,1748650244378,-1460.09,0.0001863,2]
[363253637,1748650244388,-721.34,0.0001863,2]
[363253638,1748650244398,-430.0,0.0001863,2]
[363253639,1748650244408,-1111.19,0.0001863,2]
[363253640,1748650244418,-430.0,0.0001863,2]
[363253641,1748650244428,-2520.39,0.0001863,2]
[363253642,1748650244437,-213.57163887,0.0001863,2]
[363253643,1748650244447,-849.62,0.0001863,2]
[363253644,1748650244457,-505.87,0.0001863,2]
[363253645,1748650244467,-528.28,0.0001863,2]
[363253646,1748650244477,-760.4,0.0001863,2]
[363253647,1748650244486,-151.0,0.000187,2]
[363253648,1748650244496,-150.13706857,0.00018708,2]
[363253649,1748650244506,-600.000001,0.0001874,2]
[363253650,1748650244516,-600.0,0.0001874,2]
[363253651,1748650244526,-597.56426999,0.00018753,2]
[363253652,1748650244535,-153.524869,0.00018768,2]
[363253653,1748650244545,-587.0,0.00018787,2]
[363253654,1748650244554,-587.0,0.00018787,2]
[363253655,1748650244566,-560.12398618,0.000188,2]
[363253656,1748650244575,-151.0,0.000188,2]
[363253657,1748650244585,-208.227,0.0001881,2]
[363253658,1748650244594,-250.0,0.0001881,2]
[363253659,1748650244603,-238.354,0.0001881,2]
[363253660,1748650244612,-162.871,0.0001881,2]
[363253661,1748650244621,-257.76,0.0001881,2]
[363253662,1748650244631,-242.0,0.0001881,2]
[363253663,1748650244640,-215.195,0.0001881,2]
[363253664,1748650244650,-961.0,0.0001881,2]
[363253665,1748650244659,-2228.0,0.0001881,2]
[363253666,1748650244669,-708.0,0.0001881,2]
[363253667,1748650244678,-6179.79939093,0.00018831,2]
[363253668,1748650244688,-156.35479342,0.00018849,2]
[363253669,1748650244698,-156.35479342,0.00018849,2]
[363253670,1748650244708,-153.0,0.00018849,2]
[363253671,1748650244718,-310.8013416,0.00018849,2]
[363253672,1748650244727,-153.0,0.00018849,2]
[363253673,1748650244737,-153.0,0.00018849,2]
[363253674,1748650244747,-176.414694,0.00018849,2]
[363253675,1748650244756,-572.1885402,0.00018849,2]
[363253676,1748650244766,-572.1885402,0.00018849,2]
[363253677,1748650244775,-312.2537965,0.00018849,2]
[363253678,1748650244785,-572.1885402,0.00018849,2]
[363253679,1748650244794,-572.1885402,0.00018849,2]
[363253680,1748650244804,-2000.0,0.00018864,2]
[363253681,1748650244817,-728.4905794,0.00018877,2]
[363253682,1748650244827,-151.0,0.000189,2]
[363253683,1748650244837,-5771.68284595,0.000189,2]
[363253684,1748650244847,-1079.47846106,0.000189,2]
[363253685,1748650244856,-165.87319625,0.000189,2]
[363253686,1748650244866,-430.0,0.00018904,2]
[363253687,1748650244876,-846.74,0.00018904,2]
[363253688,1748650244886,-877.74,0.00018904,2]
[363253689,1748650244898,-1593.58,0.00018904,2]
[363253690,1748650244908,-1003.75,0.00018904,2]
[363253691,1748650244918,-1278.08,0.00018904,2]
[363253692,1748650244928,-1043.15,0.00018904,2]
[363253693,1748650244939,-703.3,0.00018904,2]
[363253694,1748650244948,-1196.82,0.00018904,2]
[363253695,1748650244958,-430.0,0.00018904,2]
[363253696,1748650244967,-1968.93,0.00018904,2]
[363253697,1748650244977,-430.0,0.00018904,2]
[363253698,1748650244987,-680.17,0.00018904,2]
[363253699,1748650244997,-437.50399973,0.00018904,2]
[363253700,1748650245007,-525.06,0.00018904,2]
[363253701,1748650245017,-484.7,0.00018904,2]
[363253702,1748650245026,-430.0,0.00018904,2]
[363253703,1748650245036,-430.0,0.00018904,2]
[363253704,1748650245045,-1561.28,0.00018904,2]
[363253705,1748650245055,-430.0,0.00018904,2]
[363253706,1748650245065,-1929.84,0.00018904,2]
[363253707,1748650245075,-948.55,0.00018904,2]
[363253708,1748650245085,-430.0,0.00018904,2]
[363253709,1748650245095,-1460.09,0.00018904,2]
[363253710,1748650245104,-721.34,0.00018904,2]
[363253711,1748650245114,-430.0,0.00018904,2]
[363253712,1748650245123,-1111.19,0.00018904,2]
[363253713,1748650245133,-430.0,0.00018904,2]
[363253714,1748650245142,-2520.39,0.00018904,2]
[363253715,1748650245152,-849.62,0.00018904,2]
[363253716,1748650245162,-528.28,0.00018904,2]
[363253717,1748650245171,-760.4,0.00018904,2]
[363253718,1748650245180,-600.0,0.00018935,2]
[363253719,1748650245189,-153.524869,0.00018944,2]
[363253720,1748650245199,-3550.65496,0.00018973,2]
[363253721,1748650245209,-4000.0,0.0001898,2]
[363253722,1748650245218,-120959.44454052,0.00019,2]
[363253723,1748650245227,-61409.0,0.00019,2]
[363253724,1748650245237,-151.0,0.00019,2]
[363253725,1748650245247,-154.814388,0.00019,2]
[363253726,1748650245257,-151.0,0.00019,2]
[363253727,1748650245267,-151.0,0.00019,2]
[363253728,1748650245277,-151.0,0.00019,2]
[363253729,1748650245287,-151.0,0.00019,2]
[363253730,1748650245296,-151.0,0.00019,2]
[363253731,1748650245305,-151.0,0.00019,2]
[363253732,1748650245316,-260444.58952641,0.00019,2]
[363253733,1748650245503,-430.0,0.0001726,2]
[363253734,1748650245514,-430.0,0.00017534,2]
[363253735,1748650245524,-430.0,0.00017808,2]
[363253736,1748650245533,-430.0,0.00018082,2]
[363253737,1748650245543,-430.0,0.00018356,2]
[363253738,1748650245553,-430.0,0.0001863,2]
[363253739,1748650245564,-430.0,0.00018904,2]
[363253740,1748650245574,-685.03054147,0.00019,2]
[363253741,1748650245584,-151.0,0.00019,2]
[363253742,1748650245594,-151.0,0.00019,2]
[363253743,1748650245603,-151.0,0.00019,2]
[363253744,1748650245613,-208.33970809,0.00019,2]
[363253745,1748650245623,-151.0,0.00019,2]
[363253746,1748650245633,-151.0,0.00019,2]
[363253747,1748650245643,-151.0,0.00019,2]
[363253748,1748650245653,-151.0,0.00019,2]
[363253749,1748650245662,-361.610647,0.00019,2]
[363253750,1748650245672,-361.610647,0.00019,2]
[363253751,1748650245682,-361.610647,0.00019,2]
[363253752,1748650245692,-361.610647,0.00019,2]
[363253753,1748650245701,-151.0,0.00019,2]
[363253754,1748650245711,-151.0,0.00019,2]
[363253755,1748650245850,-151.0,0.00019,2]
[363253756,1748650245861,-151.0,0.00019,2]
[363253757,1748650245871,-164.695509,0.00019,2]
[363253758,1748650245881,-229.090148,0.00019,2]
[363253759,1748650245892,-229.090148,0.00019,2]
[363253760,1748650245904,-151.0,0.00019,2]
[363253761,1748650245914,-151.0,0.00019,2]
[363253762,1748650245925,-378.41083,0.00019,2]
[363253763,1748650245937,-151.0,0.00019,2]
[363253764,1748650245947,-285.082223,0.00019,2]
[363253765,1748650245957,-456.49313,0.00019,2]
[363253766,1748650245967,-456.49313,0.00019,2]
[363253767,1748650245977,-456.49313,0.00019,2]
[363253768,1748650245987,-456.49313,0.00019,2]
[363253769,1748650245997,-151.0,0.00019,2]
[363253770,1748650246008,-151.0,0.00019,2]
[363253771,1748650246018,-151.0,0.00019,2]
[363253772,1748650246028,-151.0,0.00019,2]
[363253773,1748650246037,-151.0,0.00019,2]
[363253774,1748650246047,-151.0,0.00019,2]
[363253775,1748650246057,-151.0,0.00019,2]
[363253776,1748650246068,-151.0,0.00019,2]
[363253777,1748650246078,-353.60553,0.00019,2]
[363253778,1748650246087,-341.43850999,0.00019,2]
[363253779,1748650246100,-12.16702001,0.00019,2]
[363253780,1748650246109,-353.60553,0.00019,2]
[363253781,1748650246119,-353.60553,0.00019,2]
[363253782,1748650246129,-151.0,0.00019,2]
[363253783,1748650246138,-39.37413105,0.00019,2]
[363253784,1748650246150,-111.62586895,0.00019,2]
[363253785,1748650246159,-151.0,0.00019,2]
[363253786,1748650246169,-46.56434658,0.00019,2]
[363253795,1748650246632,-573.89,0.00016438,2]
[363253796,1748650246642,-430.0,0.00016438,2]
[363253797,1748650246653,-104.43565342,0.00019,2]
[363253798,1748650246662,-151.0,0.00019,2]
[363253799,1748650246673,-151.0,0.00019,2]
[363253800,1748650246682,-151.0,0.00019,2]
[363253801,1748650246693,-3000.0,0.00019,2]
[363253803,1748650246702,-151.0,0.00019,2]
[363253804,1748650246712,-151.0,0.00019,2]
[363253805,1748650246722,-151.0,0.00019,2]
[363253806,1748650246732,-117.201831,0.00019,2]
[363253807,1748650246743,-33.798169,0.00019,2]
[363253808,1748650246753,-151.0,0.00019,2]
[363253809,1748650246762,-151.0,0.00019,2]
[363253810,1748650246771,-222.547482,0.00019,2]
[363253811,1748650246780,-222.547482,0.00019,2]
[363253812,1748650246790,-590.25373,0.00019,2]
[363253813,1748650246800,-590.25373,0.00019,2]
[363253814,1748650246813,-151.0,0.00019,2]
[363253815,1748650246823,-151.0,0.00019,2]
[363253816,1748650246832,-598.193367,0.00019,2]
[363253817,1748650246843,-200.223937,0.00019,2]
[363253818,1748650246852,-598.193367,0.00019,2]
[363253819,1748650246862,-200.223937,0.00019,2]
[363253820,1748650246872,-213.683142,0.00019,2]
[363253822,1748650246882,-213.683142,0.00019,2]
[363253824,1748650246892,-151.0,0.00019,2]
[363253825,1748650246904,-290.95988051,0.00019,2]
[363253827,1748650246913,-151.0,0.00019,2]
[363253829,1748650246923,-151.0,0.00019,2]
[363253831,1748650246933,-151.263102,0.00019,2]
[363253833,1748650246943,-151.0,0.00019,2]
[363253835,1748650246952,-151.0,0.00019,2]
[363253837,1748650246962,-151.0,0.00019,2]
[363253839,1748650246971,-151.0,0.00019,2]
[363253841,1748650246983,-65.50675409,0.00019,2]
[363253842,1748650247001,-437.60114491,0.00019,2]
[363253843,1748650247010,-503.107899,0.00019,2]
[363253844,1748650247020,-639.511507,0.00019,2]
[363253845,1748650247029,-639.511507,0.00019,2]
[363253846,1748650247039,-151.0,0.00019,2]
[363253847,1748650247049,-151.0,0.00019,2]
[363253848,1748650247059,-637.0,0.00019,2]
[363253849,1748650247070,-1030.7012,0.00019,2]
[363253850,1748650247080,-1030.7012,0.00019,2]
[363253851,1748650247089,-151.0,0.00019,2]
[363253852,1748650247099,-151.0,0.00019,2]
[363253853,1748650247108,-500.0,0.00019,2]
[363253854,1748650247119,-500.0,0.00019,2]
[363253855,1748650247129,-3000.0,0.0001901,2]
[363253856,1748650247138,-3000.0,0.0001902,2]
[363253857,1748650247148,-4253.40664177,0.0001903,2]
[363253858,1748650247160,-7364.21142222,0.0001903,2]
[363253859,1748650247170,-3000.0,0.0001903,2]
[363253860,1748650247179,-34.78857778,0.0001904,2]
[363253862,1748650548781,268.918341,0.00013699,2]
[363253867,1748651150129,-5000.0,0.00015218,2]
[363253868,1748651150151,-1110.0,0.00015682,2]
[363253869,1748651150175,-300.0,0.00015683,2]
[363253870,1748651150198,-300.0,0.00015683,2]
[363253871,1748651150222,-6227.3071741,0.00015684,2]
[363253872,1748651150242,-430.0,0.00016438,2]
[363253873,1748651150264,-430.0,0.00016438,2]
[363253874,1748651150287,-430.0,0.00016438,2]
[363253875,1748651150308,-430.0,0.00016438,2]
[363253876,1748651150329,-430.0,0.00016438,2]
[363253877,1748651150350,-430.0,0.00016438,2]
[363253878,1748651150372,-653.92,0.00016438,2]
[363253879,1748651150394,-430.0,0.00016438,2]
[363253880,1748651150415,-502.9,0.00016438,2]
[363253881,1748651150437,-495.01536474,0.00016438,2]
[363253882,1748651150461,-430.0,0.00016438,2]
[363253883,1748651150482,-430.0,0.00016438,2]
[363253884,1748651150503,-430.0,0.00016438,2]
[363253885,1748651150524,-430.0,0.00016438,2]
[363253886,1748651150546,-430.0,0.00016438,2]
[363253887,1748651150567,-430.0,0.00016438,2]
[363253888,1748651150590,-995.98,0.00016438,2]
[363253889,1748651150612,-430.0,0.00016438,2]
[363253890,1748651150634,-437.50399973,0.00016438,2]
[363253891,1748651150655,-943.83,0.00016438,2]
[363253892,1748651150677,-430.0,0.00016438,2]
[363253893,1748651150701,-859.98,0.00016438,2]
[363253894,1748651150721,-430.0,0.00016438,2]
[363253895,1748651150744,-1312.62,0.00016438,2]
[363253896,1748651150765,-430.0,0.00016438,2]
[363253897,1748651150787,-430.0,0.00016438,2]
[363253898,1748651150807,-430.0,0.00016438,2]
[363253899,1748651150829,-632.36,0.00016438,2]
[363253900,1748651150850,-430.0,0.00016438,2]
[363253901,1748651150871,-430.0,0.00016438,2]
[363253902,1748651150892,-430.0,0.00016438,2]
[363253903,1748651150913,-430.0,0.00016438,2]
[363253904,1748651150936,-973.4,0.00016438,2]
[363253905,1748651150957,-430.0,0.00016438,2]
[363253906,1748651150979,-1040.85,0.00016438,2]
[363253907,1748651151001,-430.0,0.00016438,2]
[363253908,1748651151023,-1286.56,0.00016438,2]
[363253909,1748651151044,-506.94,0.00016438,2]
[363253910,1748651151065,-1680.26,0.00016438,2]
[363253911,1748651151089,-430.0,0.00016438,2]
[363253912,1748651151111,-480.89,0.00016438,2]
[363253913,1748651151134,-585.16,0.00016438,2]
[363253914,1748651151156,-564.49,0.00016438,2]
[363253915,1748651151187,-717.33,0.00016438,2]
[363253916,1748651151209,-213.57163887,0.00016438,2]
[363253917,1748651151237,-505.87,0.00016438,2]
[363253918,1748651151263,-566.41,0.00016438,2]
[363253919,1748651151287,-430.0,0.00016438,2]
[363253920,1748651151309,-430.0,0.00016438,2]
[363253921,1748651151332,-740.8,0.00016438,2]
[363253922,1748651151356,-468.87,0.00016438,2]
[363253923,1748651151378,-653.92,0.00016712,2]
[363253924,1748651151399,-430.0,0.00016712,2]
[363253925,1748651151420,-430.0,0.00016712,2]
[363253926,1748651151442,-430.0,0.00016712,2]
[363253927,1748651151462,-526.3,0.00016712,2]
[363253928,1748651151485,-995.98,0.00016712,2]
[363253929,1748651151508,-430.0,0.00016712,2]
[363253930,1748651151530,-943.83,0.00016712,2]
[363253931,1748651151554,-430.0,0.00016712,2]
[363253932,1748651151576,-859.98,0.00016712,2]